Cogmind - Beta 14 @@@ ROGUE MODE // 2025.01.01 @ 22:48:08 Player: x1b Result: Self-destructed Performance ------------- Evolutions (1) 500 Regions Visited (2) 400 Robots Destroyed (18) 90 Value Destroyed (469) 469 Prototype IDs (0) 0 Alien Tech Used (0) 0 Bonus (0) 0 TOTAL SCORE: 1459 Bonus ------- None Cogmind --------- Core Integrity 141/400 Matter 102/300 Energy 100/100 System Corruption 0% Temperature Cool (9) Movement Core (350) Ox6 Location -9/Materials Parts ------- > --- POWER (1) -------- (None) > --- PROPULSION (3) --- (None) > --- UTILITY (2) ------ Large Storage Unit > --- WEAPON (3) ------- (None) > --- INVENTORY (15) --- Compact Wheel Large Storage Unit High-capacity Storage Unit High-capacity Storage Unit Medium Laser Assault Rifle Light Assault Rifle Light Cannon Grenade Launcher Rocket Launcher Peak State ------------ > --- POWER ------------ Ion Engine > --- PROPULSION ------- Light Treads Light Treads Improved Treads > --- UTILITY ---------- Large Storage Unit Sensor Array > --- WEAPON ----------- Grenade Launcher Rocket Launcher Rocket Launcher > --- INVENTORY -------- Compact Wheel Large Storage Unit High-capacity Storage Unit High-capacity Storage Unit Medium Laser Assault Rifle Light Assault Rifle Light Cannon Grenade Launcher Rocket Launcher [Rating: 13] Favorites ----------- Power Ion Engine Engine Ion Engine Propulsion Light Treads Treads Light Treads Utility Sensor Array Device Sensor Array Storage Small Storage Unit Weapon Grenade Launcher Ballistic Gun Light Assault Rifle Ballistic Cannon Light Cannon Launcher Grenade Launcher Build | -11 -10 -9 ------- Run | Yrd Mat Mat Slots Evolved 2 | . . 2 Power . | . . . Propulsion 1 | . . 1 Utility . | . . . Weapon 1 | . . 1 Parts Attached 18 | 7 7 4 Power 2 | 2 . . Engine 2 | 2 . . Core . | . . . Reactor . | . . . Propulsion 3 | 2 . 1 Treads 3 | 2 . 1 Leg . | . . . Wheel . | . . . Hover . | . . . Flight . | . . . Utility 6 | 1 4 1 Device 2 | . 2 . Storage 4 | 1 2 1 Processor . | . . . Hackware . | . . . Protection . | . . . Artifact . | . . . Weapon 7 | 2 3 2 Energy Gun . | . . . Energy Cannon . | . . . Ballistic Gun 2 | 2 . . Ballistic Cannon 1 | . 1 . Launcher 4 | . 2 2 Special Weapon . | . . . Impact Weapon . | . . . Slashing Weapon . | . . . Piercing Weapon . | . . . Special Melee Weapon . | . . . Unidentified Prototypes . | . . . Parts Lost 9 | . 1 8 Power 1 | . . 1 Propulsion 3 | . . 3 Utility 2 | . 1 1 Weapon 3 | . . 3 Highest Loss Streak 8 | . 1 8 To Critical Strikes . | . . . Average Slot Usage (%) 88 | . 97 75 Engine 12 | . 14 9 Treads 25 | . 28 22 Device 11 | . 11 10 Storage 12 | . 14 11 Ballistic Gun 4 | . 7 . Ballistic Cannon 5 | . 9 . Launcher 15 | . 11 22 Peak Build Rating 13 | 6 7 13 Average Rating 7 | 5 6 7 On Entrance 4 | . 6 7 Naked Turns . | . . . Heaviest Build 37 | 13 17 37 Greatest Support 63 | 40 40 63 Greatest Overweight (x) 8 | . . 8 Average Overweight (x) . | . . . Largest Inventory Capacity 20 | 8 20 15 Average Capacity 9 | 7 8 11 Most Carried 10 | 3 8 10 Average Carried 6 | 2 6 8 Final Capacity 15 | 8 8 15 Final Carried 10 | 3 7 10 Class Distribution -------------------- 92% | Mutant 7% | Skirmisher Dominant Class ---------------- Mutant | -10/Materials Mutant | -9/Materials Resources | -11 -10 -9 ----------- Run | Yrd Mat Mat Matter Collected 452 | 255 28 169 Remotely . | . . . Salvage Created 399 | . 87 312 Parts 39 | . 6 33 Haulers Intercepted . | . . . Recyclers Shooed 1 | . . 1 Parts Field Recycled . | . . . Retrieved Matter . | . . . Parts Self-Destructed . | . . . Prevented . | . . . Kills | -11 -10 -9 ------- Run | Yrd Mat Mat Combat Hostiles Destroyed 12 | . 3 9 Cannons 1 | . 1 . AOE 11 | . 2 9 Classes Destroyed 7 | . 2 5 Builder 1 | . . 1 Recycler 1 | . . 1 Operator 1 | . . 1 Watcher 3 | . 1 2 Swarmer 3 | . . 3 Grunt 7 | . 3 4 Sentry 2 | . . 2 Best Kill Streak 8 | . 3 8 Combat Bots Only 6 | . 2 6 Max Kills in Single Turn 4 | . 1 4 Gunslinging . | . . . Exploded 4 | . 1 4 Melee . | . . . Uniques/NPCs Destroyed . | . . . Combat | -11 -10 -9 -------- Run | Yrd Mat Mat Hostile Shots Fired 110 | . 27 83 Missed 29 | . 9 20 Damage Taken 1312 | . 283 1029 Core 271 | . 12 259 Absorbed by Shields . | . . . Core Remaining (%) 97 | 100 95 . Volleys Fired 23 | . 15 8 Largest 3 | . 2 3 Hottest 96 | . 65 96 Shots Fired 44 | . 27 17 Gun 2 | . 2 . Cannon 11 | . 11 . Launcher 31 | . 14 17 Special . | . . . Kinetic 13 | . 13 . Thermal . | . . . Explosive 31 | . 14 17 Electromagnetic . | . . . Robot Hit Streak 5 | . 5 2 Robot Miss Streak 4 | . 4 2 Penetration Max . | . . . Secondary Targets . | . . . Shots Hit Robots 17 | . 11 6 Core Hits 32 | . 8 24 Critical Kills . | . . . Critical Parts Destroyed . | . . . Critical Strikes . | . . . Melee Attacks . | . . . Impact . | . . . Slashing . | . . . Piercing . | . . . Sneak Attacks . | . . . Combat Hostiles . | . . . Follow-up Attacks . | . . . Damage Inflicted 1136 | . 314 822 Guns . | . . . Cannons 82 | . 82 . Explosions 1033 | . 232 801 Melee . | . . . Ramming 21 | . . 21 Kinetic 82 | . 82 . Thermal . | . . . Explosive 1033 | . 232 801 Electromagnetic . | . . . Impact . | . . . Slashing . | . . . Piercing . | . . . Highest Corruption 3 | . 3 . Average Corruption 2 | . 2 . Corruption Purged . | . . . Corruption Blocked . | . . . Effects 2 | . 2 . Matter Fused 1 | . 1 . Data Loss (minor) 1 | . 1 . Overload Shots . | . . . Overflow Damage 34 | . 6 28 Projectiles . | . . . Explosions 34 | . 6 28 Melee . | . . . Knockbacks . | . . . Impact . | . . . Kinetic . | . . . Secondary . | . . . Self-Inflicted Damage 160 | . 34 126 Shots 7 | . 1 6 Rammed 15 | . . 15 Targets Rammed 16 | . . 16 Kicked . | . . . Crushed 1 | . . 1 Highest Temperature 54 | . 54 33 Average Temperature 18 | . 19 15 Received Heat Transfer 474 | . 180 294 Siege Activations . | . . . Robots Corrupted . | . . . Combat Hostiles . | . . . Parts Fried . | . . . Impact Corruptions . | . . . Robots Melted . | . . . Combat Hostiles . | . . . Parts Melted . | . . . Heat Transferred . | . . . Parts Sabotaged . | . . . Parts Stolen . | . . . Parts Stripped . | . . . Power Chain Reactions . | . . . Alert | -11 -10 -9 ------- Run | Yrd Mat Mat Peak Influence 271 | . 131 271 Initial 3 | . . 3 Average 65 | . 43 109 Maximum Alert Level 1 | . . 1 Low Security (%) 93 | 100 100 83 Level 1 6 | . . 16 Level 2 . | . . . Level 3 . | . . . Level 4 . | . . . Level 5 . | . . . High Security . | . . . Max Security . | . . . Squads Dispatched 1 | . . 1 Investigation . | . . . Extermination . | . . . Reinforcement 1 | . . 1 Assault . | . . . Garrison . | . . . Intercept . | . . . Searches Triggered . | . . . Construction Impeded . | . . . Haulers Reinforced . | . . . Active Scanning Responses . | . . . Cargo Convoy Interrupts . | . . . Stealth | -11 -10 -9 --------- Run | Yrd Mat Mat Distress Signals 1 | . . 1 Communications Jammed . | . . . Distress Signals . | . . . Times Spotted 27 | . 5 22 Peak Tracking Total 9 | . 3 9 Tactical Retreats 2 | . . 2 Traps | -11 -10 -9 ------- Run | Yrd Mat Mat Traps Triggered 2 | . 2 . Indirectly . | . . . Trap Hack Attempts . | . . . Triggered . | . . . Disarmed . | . . . Reprogrammed . | . . . Reused . | . . . Traps Extracted . | . . . Installed . | . . . Triggered . | . . . Machines | -11 -10 -9 ---------- Run | Yrd Mat Mat Machines Disabled 1 | . 1 . Max in Single Turn 1 | . 1 . Machines Repaired . | . . . Machines Dismantled . | . . . Machines Sabotaged . | . . . Overloaded Fab Kills . | . . . Hacking | -11 -10 -9 --------- Run | Yrd Mat Mat Machines Accessed 1 | . . 1 Terminals 1 | . . 1 Fabricators . | . . . Repair Stations . | . . . Recycling Units . | . . . Scanalyzers . | . . . Garrison Access . | . . . Total Hacks 2 | . . 2 Successful 2 | . . 2 Failed . | . . . Catastrophic . | . . . Database Lockouts . | . . . Manual . | . . . Terminals 2 | . . 2 Fabricators . | . . . Repair Stations . | . . . Recycling Units . | . . . Scanalyzers . | . . . Garrison Access . | . . . Terminal Hacks 2 | . . 2 Robot Analysis 1 | . . 1 Unreport Threat 1 | . . 1 Fabricator Hacks . | . . . Repair Station Hacks . | . . . Recycling Unit Hacks . | . . . Scanalyzer . | . . . Garrison Access Hacks . | . . . Unauthorized Hacks . | . . . Terminals . | . . . Fabricators . | . . . Repair Stations . | . . . Recycling Units . | . . . Scanalyzers . | . . . Garrison Access . | . . . Data Cores Recovered . | . . . Used . | . . . Hacking Detections 1 | . . 1 Full Trace Events . | . . . Feedback Events . | . . . Feedback Blocked . | . . . Robot Schematics Acquired . | . . . Robots Built . | . . . Authchips . | . . . Time . | . . . Total Robot Build Rating . | . . . Part Schematics Acquired . | . . . Parts Built . | . . . Authchips . | . . . Time . | . . . Total Part Build Rating . | . . . Parts Repaired . | . . . Time . | . . . Parts Recycled . | . . . Recycled Matter . | . . . Retrieved Matter . | . . . Retrieved Components . | . . . Parts Scanalyzed . | . . . Part Schematics Acquired . | . . . Parts Damaged . | . . . Bothacking | -11 -10 -9 ------------ Run | Yrd Mat Mat Used RIF Installer . | . . . Robots Hacked . | . . . Non-combat . | . . . Combat . | . . . Robot Hacks Applied . | . . . Relay Couplers Released . | . . . Fabnet Peak Effective % . | . . . Robots Rewired . | . . . Allies Hacked . | . . . Hacks Repelled . | . . . Allies | -11 -10 -9 -------- Run | Yrd Mat Mat Total Allies . | . . . Largest Group . | . . . Highest-Rated Group . | . . . Highest-Rated Ally . | . . . Total Orders . | . . . Ally Attacks . | . . . Total Damage . | . . . Kills . | . . . Allies Corrupted . | . . . Allies Melted . | . . . Intel | -11 -10 -9 ------- Run | Yrd Mat Mat Robot Analysis Total 1 | . . 1 Derelict Logs Recovered . | . . . Drone Launches . | . . . Drone Recoveries . | . . . Exploration | -11 -10 -9 ------------- Run | Yrd Mat Mat Turns Passed 1675 | 141 899 635 Spaces Moved 941 | 83 520 338 Core 17 | 3 . 14 Treads 924 | 80 520 324 Legs . | . . . Wheels . | . . . Hover . | . . . Flight . | . . . Fastest Speed 50 | 50 160 160 Average Speed 162 | 156 160 168 Slowest Speed 450 | 160 160 450 Overloaded Moves . | . . . Propulsion Burnouts . | . . . Robots Hopped . | . . . Cave-ins Triggered . | . . . Exploration Rate (%) 27 | 5 46 30 Regions Visited 2 Branch Regions . Pre-discovered Areas . | . . . Known Exits Taken . | . . . Unknown Exits Taken 2 | 1 1 . Scrap Searched . | . . . Spaces Dug . | . . . Terrain Destroyed 143 | . 48 95 Melee . | . . . Projectile . | . . . AOE 143 | . 48 95 Terrain Rammed . | . . . Walls Destroyed . | . . . Machines Disabled . | . . . Actions | -11 -10 -9 --------- Run | Yrd Mat Mat Total 1026 | 91 559 376 Wait 16 | . 11 5 Move 939 | 82 519 338 Hop . | . . . Pick Up 11 | 2 6 3 Fast Attach 9 | 6 1 2 Attach 2 | . 2 . Detach . | . . . Swap 7 | 1 4 2 Drop 3 | . 1 2 Fire 23 | . 15 8 Melee . | . . . Ram . | . . . Kick . | . . . Crush 16 | . . 16 Escape Stasis . | . . . Rewire . | . . . Trap . | . . . Miscellaneous . | . . . Route ------- -11/Scrapyard -10/Materials (discovered 2 exits: *Mat / [*Min]) -9/Materials History --------- Turn | Location | Event 16 | -11/Scrapyard | Discovered new exit (range 16) 142 | -11/Scrapyard | Entered Materials 305 | -10/Materials | Build established: Mutant 812 | -10/Materials | Discovered new exit (range 16) 865 | -10/Materials | Discovered new exit (range 16) 1041 | -10/Materials | Entered another Materials area 1041 | -9/Materials | Evolved 2 slots: Propulsion x1, Weapon x1 1665 | -9/Materials | Core integrity fell below 50% 1666 | -9/Materials | Lost 8 parts (1p3n1u3w) 1676 | -9/Materials | Self-destructed Last Messages --------------- K-01 Serf collects debris. U-05 Engineer lays Concrete. U-05 Engineer builds a Wall. K-01 Serf collects debris. U-05 Engineer lays Concrete. R-06 Scavenger collects Lgt. Ion Engine. U-05 Engineer lays Concrete. U-05 Engineer builds a Wall. U-05 Engineer lays Concrete. K-01 Serf collects debris. R-06 Scavenger collects Structural Scanner. U-05 Engineer lays Concrete. R-06 Scavenger collects Aluminum Leg. Acquired 28 matter. U-05 Engineer lays Concrete. K-01 Serf collects debris. U-05 Engineer builds a Wall. U-05 Engineer lays Concrete. U-05 Engineer builds a Door. U-05 Engineer lays Concrete. Map ----- +----------------------------------------------------+ | ?????????????????????????????????????????????????? | | ???????????????????? ???????????????????########?? | | ????????????????????? ??????????????????# """ #?? | | ?????????????????????? ?????????????????# """ #?? | | ??????????????????????? ????????????????# """ #?? | | ???????????????????????# ???????????????# #?? | | ???????????????????????# ??????????????# #?? | | ???????????????????????# ?????????????# =#?? | | ???????????????????????# #################+##### | | ???????????????????????# | | ???????????????????????# | | ???????????????????????# | | ???????????????????????#######+######+####### ## | | ??????????????????????????# # ????# ## | | ??????????????????????????# """ # """ ??# # | | ??????????????????????????# """ # """ #?# + | | ??????????????????????????# """ # """ #?# # | | ??????????????????????????# # #?# ## | | ??????????????????????????# """ # ! #?# # | | ??????????????????????????# """ ########## # | | ??????????????????????????# """ ## # | | ??????????????????????????# # | | ?????????????????????###########+# # + | | ?????????????????????# #!! ## # | | ?????????????#####+### = Y ## # | | ????????? + @ # ! # | | ????????? ## * r g/u ######+### | | ?????????????????????# """ """ # u #????????? | | ?????????????????????# """ """ # a #????????? | | ?????????????????????# """ """ k# [ #????????? | | ?????????????????????# ## ! #????????? | | ?????????????????????####+####### % % + ???????? | | ???????????????????????? ?????? *![ # ?????? | | ???????????????????????????##### # #? ???? | | ???????????????????????????# # #?? ??? | | ???????????????????????????#" """ # #???###??? | | ???????????????????????????#" """ #????????? | | ???????????????????????????#" """ + #????????? | | ???????????????????????????#T # #????????? | | ???????????????????????????#" """ #? #????????? | | ???????????????????????????#" """ #? ???????? | | ???????????????????????????#" """ #?? ??????? | | ???????????????????????????# #?? ?????? | | ???????????????????????????##########???## ???# | | ??????????????????????????????????????????###????? | | ?????????????????????????????????????????????????? | | ?????????????????????????????????????????????????? | | ?????????????????????????????????????????????????? | | ?????????????????????????????????????????????????? | | ?????????????????????????????????????????????????? | +----------------------------------------------------+ Best States ------------- Heat Dissipation 28 Energy Generation 10 Energy Capacity 250 Matter Stores 285 Matter Capacity 300 Sight Range 16 Robot Scan Range 14 Terrain Scan Density 10 Evasion (%) 40 Recoil Reduction 3 Item Schematics ----------------- None Robot Schematics ------------------ None Fabricated ------------ Nothing Alien Tech Used ----------------- None Achievements -------------- Everything Is Under Control Challenges ------------ None Game ------ Seed ImpulseAblativeCapacitor Manual? 0 Play Time 00:15:16 Cumulative 4.5 hours Start 2025.01.01 @ 21:24:02 End 2025.01.01 @ 22:48:08 Sessions 1 Manual Loads 0 Difficulty Rogue Special Mode None Game No. 17 Rogue 11 Adventurer 6 Explorer 0 Win Type - Total 0 Types 0/0/0/0/0/0/0/0/0 Lore% 2 Gallery% 9 Achievement% 10 Wizard Run 0 Options --------- Layout 1 ASCII 0 Keyboard 0 Movement Arrows Keybinds 0 Fullscreen 1 Font 24/Smallcaps Map View 50x35 Zoom Use 0% Tactical HUD 0 Map Filters NONE Filters NONE Steam 1 RUN: 1c464dad-e309-452a-a560-8bd12ec5f155